bitfinex-derivatives/quotes_BTCF0:USTF0_20241117
["timestamp","ask_amount","ask_price","bid_price","bid_amount"]
[1731870726204,0.0301,90066.0,90048.0,0.33316]
[1731870726408,0.0301,90066.0,90047.0,0.1740525]
[1731870726409,0.0301,90066.0,90065.0,0.0855009]
[1731870726611,0.055493,90096.0,90079.0,0.055503]
[1731870726812,0.0309,90095.0,90094.0,0.0855009]
[1731870727321,0.0309,90095.0,90094.0,0.02204857]
[1731870727518,0.0309,90095.0,90091.0,0.0855009]
[1731870728225,0.0309,90095.0,90078.0,0.0052]
[1731870728226,0.1164009,90095.0,90078.0,0.0052]
[1731870728513,0.4163,90086.0,90079.0,0.08764]
[1731870728914,0.4163,90086.0,90074.0,0.3608]
[1731870728915,0.3608,90086.0,90074.0,0.3608]
[1731870729119,0.3608,90086.0,90075.0,0.08756]
[1731870729120,0.055505,90077.0,90075.0,0.08756]
[1731870729705,0.3608,90086.0,90065.0,0.36164]
[1731870729904,0.05551,90070.0,90066.0,0.08756]
[1731870730114,0.12091,90069.0,90064.0,0.08756]
[1731870730314,0.055511,90067.0,90064.0,0.08756]
[1731870730831,0.055513,90064.0,90063.0,0.08756]
[1731870731921,0.0654,90069.0,90056.0,0.00166556]
[1731870732120,0.3608,90060.0,90056.0,0.00166556]
[1731870732804,0.055517,90057.0,90056.0,0.00166556]
[1731870733009,0.3608,90060.0,90049.0,0.08756]
[1731870733612,0.416316,90060.0,90049.0,0.08756]
[1731870733807,0.3608,90060.0,90049.0,0.08756]
[1731870734015,0.05552,90052.0,90049.0,0.08756]
[1731870734220,0.0329,90051.0,90049.0,0.08756]
[1731870736727,0.055523,90047.0,90046.0,0.00014171]
[1731870737219,0.055523,90047.0,90029.0,0.0052]
[1731870737220,0.055534,90030.0,90029.0,0.0052]
[1731870737410,0.055537,90025.0,90022.0,0.08756]
[1731870737611,0.055537,90025.0,90023.0,0.01041824]
[1731870737811,0.055537,90025.0,90022.0,0.08756]
[1731870738112,0.055537,90025.0,90023.0,8.132e-05]
[1731870739011,0.4463009,90024.0,90023.0,8.132e-05]
[1731870740313,0.4789009,90024.0,90023.0,8.132e-05]
[1731870745023,0.0326,90024.0,90023.0,0.05561932]
[1731870745218,0.00056001,90025.0,90023.0,0.14112022]
[1731870745412,0.00012665,90033.0,90023.0,0.08558222]
[1731870745710,0.00012665,90033.0,90028.0,0.055535]
[1731870746117,0.055534,90031.0,90028.0,0.055535]
[1731870746325,0.055534,90030.0,90028.0,0.055535]
[1731870747024,0.00012665,90033.0,90023.0,8.132e-05]
[1731870747215,0.00012665,90033.0,90031.0,0.055533]
[1731870749823,0.00012665,90033.0,90023.0,0.08558222]
[1731870750826,0.00012665,90033.0,90028.0,0.055535]
[1731870751423,0.00012665,90033.0,90031.0,0.055533]
[1731870751736,0.00012665,90033.0,90024.0,0.055537]
[1731870751737,0.055533,90032.0,90024.0,0.055537]
[1731870752033,0.055533,90032.0,90023.0,0.08558222]
[1731870752034,0.055533,90032.0,90025.0,0.055536]
[1731870752221,0.055533,90032.0,90023.0,0.08558222]
[1731870752523,0.055533,90031.0,90026.0,0.055536]
[1731870753127,0.00012665,90033.0,90023.0,8.132e-05]
[1731870753316,0.055536,90027.0,90023.0,8.132e-05]
[1731870753624,0.00012665,90033.0,90023.0,8.132e-05]
[1731870753625,0.055537,90025.0,90023.0,8.132e-05]
[1731870757912,0.3608,90024.0,90023.0,8.132e-05]
[1731870760239,0.85967447,90024.0,90023.0,8.132e-05]
[1731870760531,0.055547,90009.0,90008.0,0.0052]
[1731870760729,0.05555,90003.0,89999.0,0.088353]
[1731870761027,0.05555,90003.0,90000.0,0.055552]
[1731870761430,0.05555,90003.0,90002.0,0.03343077]
[1731870761832,0.05555,90003.0,90002.0,0.03643077]
[1731870762730,0.05555,90003.0,90002.0,0.03843077]
[1731870765536,0.05555,90003.0,90002.0,0.04220343]
[1731870766127,0.05555,90003.0,90002.0,0.00890343]
[1731870766435,0.05555,90003.0,90002.0,0.00890488]
[1731870767336,0.05555,90003.0,90002.0,0.00513077]
[1731870768924,0.38887,90003.0,90002.0,0.00513077]
[1731870770942,0.41622546,90003.0,90002.0,0.00513077]
[1731870771129,0.77702546,90003.0,90002.0,0.00513077]
[1731870771935,0.909455,90003.0,90002.0,0.00513077]
[1731870772447,0.41635,90003.0,90002.0,0.00213077]
[1731870772840,0.5488669,90003.0,90002.0,0.00013077]
[1731870773252,0.5488669,90003.0,89961.0,0.02701881]
[1731870773253,0.0855009,89991.0,89961.0,0.02701881]
[1731870773425,0.0855009,89991.0,89952.0,0.00076]
[1731870773426,0.055581,89954.0,89952.0,0.00076]
[1731870773625,0.3608,89958.0,89953.0,0.00385453]
[1731870773829,0.416378,89958.0,89954.0,0.00385453]
[1731870774040,0.055579,89956.0,89955.0,0.00385453]
[1731870774240,0.055579,89956.0,89955.0,0.00395747]
[1731870774731,0.3608,89958.0,89955.0,0.05568294]
[1731870774931,0.3608,89958.0,89955.0,0.00010294]
[1731870775138,0.055579,89956.0,89955.0,0.00010294]
[1731870775936,0.1410799,89956.0,89955.0,0.00010294]
[1731870778546,0.055579,89956.0,89955.0,0.00010294]
[1731870780744,0.3608,89958.0,89956.0,0.055579]
[1731870780946,0.00011302,89960.0,89958.0,0.055578]
[1731870781538,0.00011302,89960.0,89959.0,0.031]
[1731870781945,0.00011302,89960.0,89959.0,0.1186]
[1731870782255,0.00166779,89974.0,89959.0,0.92404175]
[1731870782546,0.00166779,89974.0,89972.0,0.055569]
[1731870782845,0.00166779,89974.0,89973.0,0.0876]
[1731870783455,0.00366779,89974.0,89973.0,0.0876]
[1731870784149,0.055563,89983.0,89973.0,0.0876]
[1731870784355,0.05568017,89988.0,89975.0,0.055567]
[1731870784654,0.05568017,89988.0,89980.0,0.055564]
[1731870785237,0.05568017,89988.0,89973.0,0.0876]
[1731870785238,0.00012017,89988.0,89983.0,0.055562]
[1731870785441,0.00012017,89988.0,89976.0,0.36156]
[1731870785661,0.055566,89978.0,89977.0,0.00375562]
[1731870785867,0.3608,89982.0,89958.0,0.38819357]
[1731870785868,0.055576,89962.0,89958.0,0.38819357]
[1731870786051,0.0855009,89961.0,89960.0,0.00375526]
[1731870786352,0.1410769,89961.0,89959.0,0.005]
[1731870786551,0.055579,89956.0,89954.0,0.08926745]
[1731870788749,0.055579,89956.0,89955.0,0.00110294]
[1731870796256,0.416379,89956.0,89955.0,0.00110294]
[1731870799653,0.58192212,89956.0,89955.0,0.00110294]
[1731870800257,0.47044752,89956.0,89955.0,0.00110294]
[1731870800646,0.055589,89941.0,89940.0,0.0876]
[1731870801349,0.13247726,89941.0,89930.0,0.055595]
[1731870801551,0.055595,89932.0,89931.0,0.0876]
[1731870801764,0.055595,89932.0,89931.0,0.08773576]
[1731870802061,0.055595,89932.0,89931.0,0.00013576]
[1731870802751,0.057595,89932.0,89931.0,0.00513576]
[1731870803945,0.059595,89932.0,89931.0,0.01013576]
[1731870806363,0.059595,89932.0,89931.0,7.6e-07]
[1731870806868,0.0556,89923.0,89910.0,0.0876]
[1731870807069,0.5019009,89923.0,89910.0,0.0876]
[1731870807266,0.50203944,89923.0,89922.0,0.00176819]
[1731870808053,0.50403944,89923.0,89922.0,0.00776819]
[1731870808566,0.50703944,89923.0,89922.0,0.00776819]
[1731870809060,0.50503944,89923.0,89922.0,0.00776819]
[1731870809455,0.50303944,89923.0,89922.0,0.00176819]
[1731870809871,0.53048992,89923.0,89922.0,0.00176819]
[1731870813172,0.53048992,89923.0,89922.0,1.9e-07]
[1731870813570,0.61812992,89923.0,89922.0,1.9e-07]
[1731870814372,0.41753854,89923.0,89922.0,1.9e-07]
[1731870814577,0.05573854,89923.0,89922.0,1.9e-07]
[1731870814876,0.05673854,89923.0,89922.0,1.9e-07]
[1731870815464,0.00213854,89923.0,89922.0,0.36080019]
[1731870815667,0.00213854,89923.0,89922.0,0.44630109]
[1731870815894,0.00213854,89923.0,89922.0,0.36080019]
[1731870816468,0.00213854,89923.0,89922.0,1.9e-07]
[1731870819672,0.0284682,89923.0,89922.0,1.9e-07]
[1731870819979,0.00213854,89923.0,89922.0,1.9e-07]
[1731870820973,0.02878222,89923.0,89922.0,1.9e-07]
[1731870821180,0.36242222,89923.0,89922.0,1.9e-07]
[1731870821374,0.49483295,89923.0,89922.0,1.9e-07]
[1731870821591,0.36242222,89923.0,89922.0,1.9e-07]
[1731870821882,0.4946927,89923.0,89922.0,1.9e-07]
[1731870822081,0.36242222,89923.0,89922.0,1.9e-07]
[1731870823084,0.49469178,89923.0,89922.0,1.9e-07]
[1731870823973,0.49470229,89923.0,89922.0,1.9e-07]
[1731870824177,0.36242222,89923.0,89922.0,1.9e-07]
[1731870824383,0.49472234,89923.0,89922.0,1.9e-07]
[1731870824585,0.36242222,89923.0,89922.0,1.9e-07]
[1731870824778,0.41651677,89923.0,89922.0,1.9e-07]
[1731870825282,0.111202,89922.0,89907.0,0.0052]
[1731870825583,0.055613,89901.0,89900.0,0.1]
[1731870826187,0.055613,89901.0,89900.0,0.10010334]
[1731870827181,0.060613,89901.0,89900.0,0.10210334]
[1731870827485,0.1461139,89901.0,89900.0,0.10210334]
[1731870828189,0.27849902,89901.0,89900.0,0.10210334]
[1731870828374,0.1461139,89901.0,89900.0,0.10210334]
[1731870829084,0.1451139,89901.0,89900.0,0.10010334]
[1731870829879,0.17164749,89901.0,89900.0,0.10010334]
[1731870830383,0.33501199,89901.0,89900.0,0.10010334]
[1731870830590,0.22375281,89901.0,89900.0,0.10010334]
[1731870831580,0.25728749,89901.0,89900.0,0.10010334]
[1731870841593,0.30224842,89901.0,89900.0,0.10010334]
[1731870841799,0.16964749,89901.0,89900.0,0.10010334]
[1731870842297,0.30224823,89901.0,89900.0,0.10010334]
[1731870842491,0.16964749,89901.0,89900.0,0.10010334]
[1731870842686,0.30224823,89901.0,89900.0,0.10010334]
[1731870843300,0.16964749,89901.0,89900.0,0.10010334]
[1731870843496,0.25728749,89901.0,89900.0,0.10010334]
[1731870844887,0.16964749,89901.0,89900.0,0.10010334]
[1731870845487,0.08414659,89901.0,89900.0,0.10010334]
[1731870846791,0.28279833,89901.0,89900.0,0.10010334]
[1731870847000,0.33690268,89901.0,89900.0,0.10010334]
[1731870847397,0.13825094,89901.0,89900.0,0.10010334]
[1731870847984,0.85985094,89901.0,89900.0,0.10010334]
[1731870848397,0.83331735,89901.0,89900.0,0.10010334]
[1731870849295,0.47251735,89901.0,89900.0,0.10010334]
[1731870849891,0.418413,89901.0,89900.0,0.10010334]
[1731870850403,0.4725113,89901.0,89900.0,0.10010334]
[1731870851399,0.3128,89901.0,89900.0,0.15571734]
[1731870851901,0.16598012,89903.0,89900.0,0.10010334]
[1731870852091,0.16598012,89903.0,89902.0,0.055613]
[1731870852291,0.16598012,89904.0,89902.0,0.055613]
[1731870852487,0.11698012,89904.0,89902.0,0.055613]
[1731870852704,0.1328194,89908.0,89906.0,0.05561]
[1731870853008,0.1328194,89909.0,89908.0,0.055609]
[1731870853196,0.1328194,89910.0,89908.0,0.055609]
[1731870853395,0.055608,89909.0,89907.0,0.0319]
[1731870853710,0.055613,89901.0,89900.0,0.10090334]
[1731870853905,0.1411139,89901.0,89900.0,0.10090334]
[1731870854099,0.1411139,89901.0,89900.0,0.10010334]
[1731870854702,0.49350852,89904.0,89900.0,0.10010334]
[1731870854889,0.13270852,89907.0,89906.0,0.05561]
[1731870855088,0.13270852,89911.0,89900.0,0.10010334]
[1731870855297,0.54911452,89914.0,89910.0,0.055608]
[1731870855501,0.055606,89913.0,89911.0,0.0331]
[1731870855704,0.055606,89913.0,89911.0,0.088707]
[1731870856608,0.1164009,89922.0,89911.0,0.088707]
[1731870856609,0.055602,89920.0,89917.0,0.055604]
[1731870856792,0.055602,89920.0,89918.0,0.0323]
[1731870857511,0.00013854,89923.0,89918.0,0.0323]
[1731870858003,0.0855009,89920.0,89918.0,0.0323]
[1731870858206,0.1411029,89920.0,89918.0,0.0323]
[1731870859220,0.00266894,89919.0,89918.0,0.0323]
[1731870860309,0.00366894,89919.0,89918.0,0.0323]
[1731870860703,0.00266894,89919.0,89918.0,0.0323]
[1731870860906,0.00366894,89919.0,89918.0,0.0323]
[1731870863215,0.00266894,89919.0,89918.0,0.0323]
[1731870863402,0.00366894,89919.0,89918.0,0.0323]
[1731870864009,0.00266894,89919.0,89918.0,0.0323]
[1731870864303,0.00366894,89919.0,89918.0,0.0323]
[1731870865394,0.00266894,89919.0,89918.0,0.0323]
[1731870865599,0.00366894,89919.0,89918.0,0.0323]
[1731870865808,0.00266894,89919.0,89918.0,0.0323]
[1731870866109,0.00366894,89919.0,89918.0,0.0323]
[1731870867913,0.05927094,89919.0,89918.0,0.0323]
[1731870868613,0.00266894,89919.0,89918.0,0.0323]
[1731870868819,0.00366894,89919.0,89918.0,0.0323]
[1731870869202,0.00266894,89919.0,89918.0,0.0323]
[1731870869397,0.00366894,89919.0,89918.0,0.0323]
[1731870871520,0.00266894,89919.0,89918.0,0.0323]
[1731870871821,0.00366894,89919.0,89918.0,0.0323]
[1731870872322,0.055607,89913.0,89911.0,0.03386]
[1731870872502,0.055607,89913.0,89911.0,0.0331]
[1731870872703,0.055607,89913.0,89911.0,0.088707]
[1731870873917,0.056607,89913.0,89911.0,0.088707]
[1731870874602,0.057607,89913.0,89911.0,0.088707]
[1731870874802,0.002,89913.0,89911.0,0.088707]
[1731870875015,0.002,89913.0,89905.0,0.055611]
[1731870875213,0.055612,89904.0,89902.0,0.0876]
[1731870875415,0.055612,89904.0,89902.0,0.143213]
[1731870875606,0.055612,89904.0,89902.0,0.16961211]
[1731870876010,0.055612,89903.0,89902.0,0.0876]
[1731870876210,0.055613,89901.0,89892.0,0.0307]
[1731870876418,0.055613,89901.0,89898.0,0.055615]
[1731870876602,0.055613,89901.0,89892.0,0.0307]
[1731870876807,0.055613,89901.0,89895.0,0.055617]
[1731870877013,0.055613,89901.0,89900.0,0.41100334]
[1731870877413,0.057613,89901.0,89900.0,0.41200334]
[1731870877819,0.002,89901.0,89900.0,0.46761734]
[1731870878006,0.001,89901.0,89900.0,0.46661734]
[1731870878220,0.001,89901.0,89900.0,0.80033734]
[1731870878518,0.0303,89918.0,89916.0,0.055604]
[1731870878820,0.085903,89918.0,89916.0,0.055604]
[1731870879621,0.086903,89918.0,89916.0,0.055604]
[1731870880024,0.087903,89918.0,89916.0,0.055604]
[1731870880325,0.055607,89912.0,89911.0,0.055607]
[1731870880523,0.055607,89912.0,89911.0,0.143167]
[1731870881414,0.057603,89918.0,89916.0,0.055604]
[1731870881619,0.001,89918.0,89916.0,0.055604]
[1731870881818,0.18997946,89919.0,89911.0,0.08756]
[1731870882019,0.055604,89918.0,89916.0,0.055604]
[1731870882922,0.13437746,89919.0,89912.0,0.032]
[1731870883124,0.055606,89913.0,89911.0,0.08756]
[1731870884015,0.056603,89918.0,89916.0,0.055604]
[1731870884420,0.055603,89918.0,89916.0,0.055604]
[1731870886829,0.05408678,89917.0,89916.0,0.055604]
[1731870888030,0.05408678,89917.0,89916.0,0.05935103]
[1731870888231,0.05508678,89917.0,89916.0,0.05935103]
[1731870888618,0.001,89917.0,89916.0,0.05935103]
[1731870888832,0.00166894,89919.0,89918.0,0.055603]
[1731870890527,0.00166894,89919.0,89918.0,0.05937278]
[1731870890837,0.00013854,89923.0,89918.0,0.05937278]
[1731870890838,0.00013854,89923.0,89922.0,0.0556]
[1731870893334,0.00013854,89923.0,89922.0,0.05938823]
[1731870893529,0.00113854,89923.0,89922.0,0.05938823]
[1731870893929,0.00013854,89923.0,89922.0,0.05938823]
[1731870894232,0.00113854,89923.0,89922.0,0.05938823]
[1731870894537,0.00113854,89923.0,89922.0,0.0556]
[1731870899539,0.00113854,89923.0,89922.0,0.08258087]
[1731870900134,0.00013854,89923.0,89922.0,0.08258087]
[1731870900442,0.00113854,89923.0,89922.0,0.0556]
[1731870900840,0.08663944,89923.0,89914.0,0.055605]
[1731870901146,0.055604,89916.0,89915.0,0.055605]
[1731870901343,0.00113854,89923.0,89911.0,0.08756]
[1731870901544,0.055601,89921.0,89911.0,0.08756]
[1731870901742,0.00113854,89923.0,89911.0,0.08756]
[1731870901947,0.00113854,89923.0,89922.0,0.0556]
[1731870902345,0.00013854,89923.0,89922.0,0.0556]
[1731870902538,0.00113854,89923.0,89922.0,0.0556]
[1731870902940,0.00013854,89923.0,89922.0,0.0556]
[1731870903136,0.00113854,89923.0,89922.0,0.0556]
[1731870903335,0.00113854,89923.0,89914.0,0.0855009]
[1731870903648,0.055603,89918.0,89917.0,0.055604]
[1731870904050,0.055603,89918.0,89917.0,0.05937291]
[1731870904743,0.055603,89918.0,89917.0,0.00376891]
[1731870905133,0.055605,89915.0,89913.0,0.143166]
[1731870905337,0.055605,89915.0,89913.0,0.055606]
[1731870905747,0.055605,89915.0,89914.0,0.055605]
[1731870906850,0.056605,89915.0,89914.0,0.055605]
[1731870907148,0.001,89915.0,89914.0,0.05938238]
[1731870907351,0.001,89915.0,89914.0,0.14488328]
[1731870907545,0.00013854,89923.0,89922.0,0.0556]
[1731870907756,0.00013854,89923.0,89922.0,0.0594083]
[1731870909551,0.00013854,89923.0,89922.0,0.0556]
[1731870910251,0.00013854,89923.0,89922.0,0.0862282]
[1731870910751,0.00113854,89923.0,89922.0,0.1737482]
[1731870910946,0.13278031,89935.0,89933.0,0.055594]
[1731870911143,0.13278031,89936.0,89935.0,0.055592]
[1731870911357,0.13278031,89937.0,89934.0,0.08752]
[1731870911656,0.0322,89940.0,89939.0,0.05559]
[1731870912247,7.855e-05,89943.0,89942.0,0.055588]
[1731870912849,7.855e-05,89943.0,89942.0,0.05945022]
[1731870913472,0.3608,89964.0,89942.0,0.05945022]
[1731870913473,0.13278031,89958.0,89942.0,0.77003348]
[1731870913656,0.055574,89965.0,89953.0,0.35167603]
[1731870913851,0.055574,89965.0,89955.0,0.26617513]
[1731870914052,0.055574,89965.0,89954.0,0.09141692]
[1731870914053,0.055574,89965.0,89956.0,0.27007158]
[1731870914257,0.055574,89965.0,89957.0,0.00389645]
[1731870914459,0.00011812,89964.0,89959.0,0.19945934]
[1731870914853,0.00011812,89964.0,89958.0,0.00012953]
[1731870914854,0.00011812,89964.0,89960.0,0.055577]
[1731870916061,0.00011812,89964.0,89961.0,0.00383617]
[1731870916062,0.36091812,89964.0,89961.0,0.00383617]
[1731870916271,0.055578,89959.0,89958.0,0.00012953]
[1731870916565,0.055577,89960.0,89939.0,0.00076]
[1731870916753,0.1410899,89940.0,89939.0,0.00076]
[1731870917262,0.1410899,89940.0,89930.0,0.00166793]
[1731870917263,0.055595,89931.0,89930.0,0.00166793]
[1731870917448,0.5018959,89931.0,89930.0,0.00166793]
[1731870917863,0.416395,89931.0,89930.0,0.00166793]
[1731870918264,0.055596,89929.0,89928.0,0.00084]
[1731870918955,0.055596,89929.0,89927.0,0.00010028]
[1731870920667,0.055596,89929.0,89928.0,0.055597]
[1731870921765,0.055596,89929.0,89927.0,0.00010028]
[1731870922868,0.0321,89930.0,89929.0,0.055596]
[1731870923263,0.49327325,89931.0,89929.0,0.055596]
[1731870923557,0.3608,89931.0,89929.0,0.055596]
[1731870924576,0.13247325,89939.0,89930.0,0.3608]
[1731870924755,0.13247325,89939.0,89930.0,0.4223]
[1731870924961,0.055596,89929.0,89927.0,0.00010028]
[1731870925265,0.13247325,89928.0,89927.0,0.00010028]
[1731870926170,0.055596,89929.0,89927.0,0.00010028]
[1731870926371,0.13249414,89928.0,89927.0,0.00010028]
[1731870926971,0.13248993,89928.0,89927.0,0.00010028]
[1731870928569,0.055596,89929.0,89927.0,0.00010028]
[1731870929167,0.13250992,89928.0,89927.0,0.00010028]
[1731870930080,0.055596,89929.0,89927.0,0.00010028]
[1731870931380,0.3608,89928.0,89927.0,0.00010028]
[1731870932070,0.3608,89928.0,89913.0,0.26585759]
[1731870932071,0.055606,89913.0,89912.0,0.19939319]
[1731870932273,0.05561,89907.0,89903.0,0.19939319]
[1731870932473,0.05561,89907.0,89904.0,0.00389496]
[1731870932677,0.05561,89907.0,89905.0,0.00389496]
[1731870932870,0.05561,89907.0,89906.0,0.00389496]
[1731870933069,0.05561,89907.0,89906.0,0.00397996]
[1731870934672,0.05561,89907.0,89906.0,8.5e-05]
[1731870934981,0.05561,89907.0,89906.0,0.003085]
[1731870938185,0.41641,89907.0,89906.0,0.003085]
[1731870938490,0.41655227,89907.0,89906.0,0.003085]
[1731870938674,0.44895227,89907.0,89906.0,0.003085]
[1731870939379,0.055613,89901.0,89900.0,0.0501]
[1731870939583,0.1411139,89901.0,89900.0,0.0501]
[1731870940583,0.055613,89901.0,89900.0,0.0501]
[1731870942081,0.056613,89901.0,89900.0,0.0501]
[1731870942379,0.001,89901.0,89900.0,0.0501]
[1731870942579,0.001,89901.0,89900.0,0.0828]
[1731870943283,0.001,89901.0,89900.0,0.0501]
[1731870943878,0.002,89901.0,89900.0,0.0501]
[1731870944382,0.001,89901.0,89900.0,0.0501]
[1731870944575,0.002,89901.0,89900.0,0.0501]
[1731870945389,0.001,89901.0,89900.0,0.0501]
[1731870950482,0.001,89901.0,89900.0,0.0807]
[1731870951381,0.001,89901.0,89900.0,0.136314]
[1731870959100,0.1421139,89901.0,89900.0,0.0501]
[1731870959300,0.19621019,89901.0,89900.0,0.0501]
[1731870959504,0.3407401,89901.0,89900.0,0.0501]
[1731870959804,0.39483639,89901.0,89900.0,0.0501]
[1731870960600,0.19621305,89901.0,89900.0,0.0501]
[1731870960900,0.19521305,89901.0,89900.0,0.0501]
[1731870961100,0.19621305,89901.0,89900.0,0.0501]
[1731870961507,0.05509915,89901.0,89900.0,0.0501]
[1731870961797,0.05509915,89901.0,89900.0,0.105714]
[1731870961798,0.2004933,89901.0,89900.0,0.105714]
[1731870962099,0.05509915,89901.0,89900.0,0.105714]
[1731870963594,0.05509915,89901.0,89900.0,0.0501]
[1731870963797,0.11071215,89901.0,89900.0,0.0501]
[1731870965508,0.11071215,89901.0,89900.0,0.0002]
[1731870965808,0.22779102,89901.0,89900.0,0.0002]
[1731870966308,0.22756886,89901.0,89900.0,0.0002]
[1731870966703,0.56128886,89901.0,89900.0,0.0002]
[1731870967004,0.055618,89893.0,89892.0,0.00010812]
[1731870967200,0.55602,89893.0,89892.0,0.00010812]
[1731870967805,0.84289159,89893.0,89892.0,0.00010812]
[1731870968197,0.84289159,89893.0,89880.0,0.20106206]
[1731870968198,0.055626,89880.0,89879.0,0.20459319]
[1731870968412,0.416426,89880.0,89875.0,0.19939319]
[1731870968599,0.05563,89874.0,89873.0,0.19939319]
[1731870968996,0.05563,89874.0,89872.0,0.19939319]
[1731870969196,0.05563,89874.0,89872.0,0.19951537]
[1731870969404,0.05563,89874.0,89872.0,0.00012218]
[1731870970007,0.0855009,89873.0,89872.0,0.00012218]
[1731870970514,0.24834941,89873.0,89872.0,0.00012218]
[1731870970696,0.1155009,89873.0,89872.0,0.00012218]
[1731870971303,0.17461671,89873.0,89872.0,0.00012218]
[1731870974211,0.3070484,89873.0,89872.0,0.00012218]
[1731870974409,0.17461671,89873.0,89872.0,0.00012218]
[1731870977014,0.50841671,89873.0,89872.0,1.8e-07]
[1731870977310,0.50841671,89873.0,89864.0,0.00095]
[1731870977508,0.5019369,89865.0,89864.0,0.00095]
[1731870978325,0.63416711,89865.0,89864.0,0.00095]
[1731870978504,0.5019369,89865.0,89864.0,0.00095]
[1731870979708,0.63416711,89865.0,89864.0,0.00095]
[1731870980011,0.5019369,89865.0,89864.0,0.00095]
[1731870980317,0.63416711,89865.0,89864.0,0.00095]
[1731870980809,0.5019369,89865.0,89864.0,0.00095]
[1731870981713,0.5894169,89865.0,89864.0,0.00095]
[1731870981903,0.5904169,89865.0,89864.0,0.00095]
[1731870983012,0.417436,89865.0,89864.0,0.00095]
[1731870983413,0.5029369,89865.0,89864.0,0.00095]
[1731870984305,0.055644,89852.0,89851.0,0.005295]
[1731870984512,0.055644,89852.0,89851.0,9.5e-05]
[1731870985507,0.058644,89852.0,89851.0,9.5e-05]
[1731870986128,0.060644,89852.0,89851.0,0.004095]
[1731870988225,0.005,89852.0,89851.0,0.004095]
[1731870996120,0.001,89852.0,89851.0,9.5e-05]
[1731870997723,0.055637,89863.0,89852.0,0.055644]
[1731870997912,0.055637,89863.0,89860.0,0.19997239]
[1731870998121,0.055637,89863.0,89862.0,0.19997239]
[1731870998325,0.055637,89863.0,89861.0,0.055638]
[1731870998932,0.055637,89863.0,89862.0,0.0312]
[1731870999728,0.056637,89863.0,89862.0,0.0312]
[1731871000716,0.001,89863.0,89862.0,0.0312]
[1731871000923,0.1339078,89863.0,89862.0,0.23132378]
[1731871001126,0.1339078,89863.0,89862.0,0.0312]
[1731871001332,0.001,89863.0,89862.0,0.29808465]
[1731871001530,0.001,89863.0,89862.0,0.0312]
[1731871002441,0.1329078,89870.0,89862.0,0.0312]
[1731871002632,0.1329078,89870.0,89869.0,0.055633]
[1731871003627,0.1339078,89870.0,89869.0,0.055633]
[1731871004220,0.001,89870.0,89869.0,0.055633]
[1731871005041,0.001,89870.0,89869.0,0.25566944]
[1731871005415,0.001,89870.0,89869.0,0.055633]
[1731871005920,0.13282386,89876.0,89873.0,0.05563]
[1731871006117,0.055628,89877.0,89873.0,0.05563]
[1731871006328,0.18845186,89877.0,89873.0,0.05563]
[1731871006939,0.055628,89877.0,89873.0,0.05563]
[1731871007422,0.056628,89877.0,89873.0,0.05563]
[1731871007734,0.05563,89875.0,89873.0,0.05563]
[1731871007932,0.001,89877.0,89867.0,0.3608]
[1731871007933,0.055631,89873.0,89868.0,0.19997616]
[1731871008236,0.001,89877.0,89868.0,0.055634]
[1731871008237,0.13282386,89876.0,89868.0,0.055634]
[1731871008432,0.055635,89867.0,89865.0,0.19997616]
[1731871008647,0.0855009,89866.0,89861.0,0.19997616]
[1731871008932,0.055639,89860.0,89858.0,0.19997616]
[1731871009140,0.0855009,89859.0,89855.0,0.19997616]
[1731871009448,0.055642,89856.0,89854.0,0.416442]
[1731871010243,0.055642,89856.0,89854.0,0.3608]
[1731871011060,0.055644,89852.0,89851.0,9.5e-05]
[1731871011237,0.2285849,89852.0,89851.0,9.5e-05]
[1731871011427,0.1411449,89852.0,89851.0,9.5e-05]
[1731871012428,0.27778623,89852.0,89851.0,9.5e-05]
[1731871012635,0.33191617,89852.0,89851.0,9.5e-05]
[1731871013418,0.3318667,89852.0,89851.0,9.5e-05]
[1731871013631,0.05512987,89852.0,89851.0,0.055739]
[1731871013823,0.001,89852.0,89851.0,0.055739]
[1731871014025,0.16693447,89852.0,89851.0,0.055739]
[1731871014225,0.001,89852.0,89851.0,0.055739]
[1731871014535,0.001,89852.0,89851.0,0.06617769]
[1731871014723,0.13275185,89854.0,89853.0,0.055643]
[1731871015032,0.00012034,89855.0,89853.0,0.055643]
[1731871016039,0.00112034,89855.0,89853.0,0.055643]
[1731871016525,0.16605481,89855.0,89851.0,9.5e-05]
[1731871016830,0.055644,89852.0,89851.0,9.5e-05]
[1731871017426,0.22157847,89852.0,89851.0,9.5e-05]
[1731871017626,0.055644,89852.0,89851.0,9.5e-05]
[1731871018237,0.16593048,89852.0,89851.0,9.5e-05]
[1731871018534,0.16593048,89852.0,89851.0,0.055739]
[1731871018535,0.16593388,89852.0,89851.0,0.055739]
[1731871018740,0.16593388,89853.0,89851.0,0.055739]
[1731871019038,0.05576234,89855.0,89851.0,0.055739]
[1731871019039,0.16605422,89855.0,89851.0,9.5e-05]
[1731871019333,0.00012034,89855.0,89854.0,0.055643]
[1731871020344,0.00012034,89855.0,89854.0,0.416443]
[1731871021032,0.00012034,89855.0,89854.0,0.055643]
[1731871022534,0.00012034,89855.0,89854.0,0.1411439]
[1731871022733,0.13274793,89871.0,89854.0,0.42981937]
[1731871022942,0.05564,89858.0,89857.0,0.19980214]
[1731871023129,0.3608,89858.0,89851.0,0.19989714]
[1731871023324,0.0855009,89852.0,89851.0,9.5e-05]
[1731871023745,0.085633,89852.0,89851.0,9.5e-05]
[1731871025040,0.21838093,89852.0,89851.0,9.5e-05]
[1731871025938,0.085633,89852.0,89851.0,9.5e-05]
[1731871026542,0.21835848,89852.0,89851.0,9.5e-05]
[1731871027146,0.0001321,89852.0,89851.0,9.5e-05]
[1731871027330,0.19925325,89852.0,89851.0,9.5e-05]
[1731871027532,0.05426005,89852.0,89851.0,9.5e-05]
[1731871028139,0.13976095,89852.0,89851.0,9.5e-05]
[1731871028534,0.3388821,89852.0,89851.0,9.5e-05]
[1731871029142,0.13976095,89852.0,89851.0,9.5e-05]
[1731871030833,0.13976209,89852.0,89851.0,9.5e-05]
[1731871031846,0.13976209,89852.0,89836.0,0.0052]
[1731871032053,0.055656,89833.0,89830.0,0.417217]
[1731871032347,0.055656,89833.0,89831.0,0.01044114]
[1731871032557,0.13268694,89836.0,89830.0,0.3608]
[1731871032751,0.13268694,89836.0,89831.0,0.01044112]
[1731871033042,0.13268694,89836.0,89832.0,0.00011248]